Cogmind - Beta 15 @@@ ROGUE MODE // 2025.05.16 @ 09:33:29 Player: ZLD1 Result: Destroyed by 78-LXO(R) with Subdweller Machine Gun Performance ------------- Evolutions (0) 0 Regions Visited (2) 400 Robots Destroyed (11) 55 Value Destroyed (215) 215 Prototype IDs (0) 0 Alien Tech Used (0) 0 Bonus (0) 0 TOTAL SCORE: 670 Bonus ------- None Cogmind --------- Core Integrity 0/250 Matter 300/300 Energy 100/100 System Corruption 0% Temperature Cool (0) Movement Walking (120) Location -10/Subcaves Parts ------- > --- POWER (1) -------- (None) > --- PROPULSION (2) --- Myomer Leg > --- UTILITY (2) ------ Small Storage Unit > --- WEAPON (2) ------- (None) > --- INVENTORY (8) ---- Light Ion Engine Light Ion Engine Light Ion Engine Subdweller Optics Targeting Computer Weapon Shielding Scrap Shield Peak State ------------ > --- POWER ------------ Ion Engine > --- PROPULSION ------- Aluminum Leg Myomer Leg > --- UTILITY ---------- Heat Sink Small Storage Unit > --- WEAPON ----------- Medium Laser Medium Laser > --- INVENTORY -------- Light Ion Engine Light Ion Engine Light Ion Engine Subdweller Optics Targeting Computer Weapon Shielding Scrap Shield [Rating: 14] Favorites ----------- Power Ion Engine Engine Ion Engine Propulsion Aluminum Leg Leg Aluminum Leg Utility Small Storage Unit Device Heat Sink Storage Small Storage Unit Weapon Medium Laser Energy Gun Medium Laser Build | -11 -10 -10 ------- Run | Yrd Mat Sub Slots Evolved . | . . . Power . | . . . Propulsion . | . . . Utility . | . . . Weapon . | . . . Parts Attached 10 | 7 2 1 Power 2 | 2 . . Engine 2 | 2 . . Core . | . . . Reactor . | . . . Propulsion 4 | 2 1 1 Treads . | . . . Leg 4 | 2 1 1 Wheel . | . . . Hover . | . . . Flight . | . . . Utility 2 | 1 1 . Device 1 | . 1 . Storage 1 | 1 . . Processor . | . . . Hackware . | . . . Protection . | . . . Artifact . | . . . Weapon 2 | 2 . . Energy Gun 2 | 2 . . Energy Cannon . | . . . Ballistic Gun . | . . . Ballistic Cannon . | . . . Launcher . | . . . Special Weapon . | . . . Impact Weapon . | . . . Slashing Weapon . | . . . Piercing Weapon . | . . . Special Melee Weapon . | . . . Unidentified Prototypes . | . . . Parts Lost 6 | . . 6 Power 1 | . . 1 Propulsion 2 | . . 2 Utility 1 | . . 1 Weapon 2 | . . 2 Highest Loss Streak 6 | . . 6 To Critical Strikes . | . . . Average Backups 4 | 1 2 6 Power 2 | . 2 3 Propulsion . | . . . Utility 1 | . . 3 Weapon . | . . . Tool/Special . | . . . Unused Backups 6 | . . 6 Power 2 | . . 2 Propulsion . | . . . Utility 4 | . . 4 Weapon . | . . . Tool/Special . | . . . Average Slot Usage (%) 89 | . 94 82 Engine 12 | . 14 10 Leg 26 | . 28 24 Device 9 | . 8 10 Storage 14 | . 14 14 Energy Gun 25 | . 28 22 Peak Build Rating 14 | 6 7 14 Average Rating 7 | 4 6 8 On Entrance 4 | . 6 7 Naked Turns . | . . . Heaviest Build 15 | 14 15 15 Greatest Support 35 | 20 20 35 Greatest Overweight (x) 1 | . . 1 Average Overweight (x) . | . . . Largest Inventory Capacity 8 | 8 8 8 Average Capacity 7 | 7 8 8 Most Carried 8 | 4 5 8 Average Carried 4 | 1 2 7 Final Capacity 8 | 8 8 8 Final Carried 8 | 2 5 8 Class Distribution -------------------- 100% | Mutant Dominant Class ---------------- Mutant | -10/Materials Mutant | -10/Subcaves Resources | -11 -10 -10 ----------- Run | Yrd Mat Sub Matter Collected 290 | 163 127 . Remotely . | . . . Salvage Created 301 | 27 229 45 Parts 15 | 3 10 2 Haulers Intercepted . | . . . Recyclers Shooed 1 | . 1 . Parts Field Recycled . | . . . Retrieved Matter . | . . . Parts Self-Destructed 18 | . . 18 Prevented . | . . . Kills | -11 -10 -10 ------- Run | Yrd Mat Sub Combat Hostiles Destroyed 9 | . 8 1 Guns 9 | . 8 1 Classes Destroyed 5 | 1 3 1 Tunneler 1 | 1 . . Watcher 1 | . 1 . Swarmer 5 | . 5 . Grunt 3 | . 3 . Subdweller 1 | . . 1 Best Kill Streak 3 | 1 3 1 Combat Bots Only 3 | . 3 1 Max Kills in Single Turn 1 | 1 1 1 Gunslinging . | . . . Exploded . | . . . Melee . | . . . Uniques/NPCs Destroyed . | . . . Combat | -11 -10 -10 -------- Run | Yrd Mat Sub Hostile Shots Fired 79 | . 34 45 Missed 23 | . 6 17 Hits 56 | . 28 28 Projectile 56 | . 28 28 Critical Strikes 1 | . . 1 Damage Taken 918 | . 267 651 Core 258 | . 61 197 Absorbed by Shields . | . . . Core Remaining (%) 100 | 100 . . Volleys Fired 36 | 1 26 9 Largest 2 | 2 2 2 Hottest 100 | 100 100 100 Shots Fired 72 | 2 52 18 Gun 72 | 2 52 18 Cannon . | . . . Launcher . | . . . Special . | . . . Kinetic . | . . . Thermal 72 | 2 52 18 Explosive . | . . . Electromagnetic . | . . . Robot Hit Streak 14 | 1 6 14 Robot Miss Streak 5 | 1 5 1 Penetration Max . | . . . Secondary Targets 1 | . 1 . Max Gunslinging Chain 1 | . 1 . Shots Hit Robots 43 | 1 30 12 Core Hits 16 | 1 12 3 Critical Kills . | . . . Critical Parts Destroyed . | . . . Critical Strikes 4 | . 3 1 Burn 4 | . 3 1 Melee Attacks . | . . . Impact . | . . . Slashing . | . . . Piercing . | . . . Sneak Attacks . | . . . Combat Hostiles . | . . . Follow-up Attacks . | . . . Damage Inflicted 546 | 25 373 148 Guns 546 | 25 373 148 Cannons . | . . . Explosions . | . . . Melee . | . . . Ramming . | . . . Kinetic . | . . . Thermal 546 | 25 373 148 Explosive . | . . . Electromagnetic . | . . . Impact . | . . . Slashing . | . . . Piercing . | . . . Highest Corruption . | . . . Average Corruption . | . . . Corruption Purged . | . . . Corruption Blocked . | . . . Overload Shots . | . . . Overflow Damage . | . . . Projectiles . | . . . Explosions . | . . . Melee . | . . . Knockbacks . | . . . Impact . | . . . Kinetic . | . . . Secondary . | . . . Self-Inflicted Damage . | . . . Shots . | . . . Rammed . | . . . Targets Rammed . | . . . Kicked . | . . . Crushed . | . . . Highest Temperature 343 | 39 343 . Average Temperature 98 | 20 102 . Received Heat Transfer 237 | . 84 153 Effects 1 | . 1 . Energy Bleed 1 | . 1 . Siege Activations . | . . . Martial Activations . | . . . Shielding Activations . | . . . Robots Disrupted . | . . . Combat Hostiles . | . . . Robots Corrupted . | . . . Combat Hostiles . | . . . Parts Fried . | . . . Impact Corruptions . | . . . Robots Melted . | . . . Combat Hostiles . | . . . Parts Melted 6 | 1 4 1 Heat Transferred 1924 | 74 1332 518 Parts Sabotaged . | . . . Parts Stolen . | . . . Parts Stripped . | . . . Power Chain Reactions . | . . . Alert | -11 -10 -10 ------- Run | Yrd Mat Sub Maximum Alert Level . | . . . Low Security (%) 100 | 100 100 . Level 1 . | . . . Level 2 . | . . . Level 3 . | . . . Level 4 . | . . . Level 5 . | . . . High Security . | . . . Max Security . | . . . Peak Influence 124 | 5 124 . Initial 3 | . 3 . Average 67 | . 76 . Influence Increases 269 | 5 264 . Destroy 0b10 Robot/C 160 | . 160 . Destroy 0b10 Robot/NC 10 | 5 5 . Destroy Leader 22 | . 22 . Destroy Structure 2 | . 2 . Lose Combat Pursuer 75 | . 75 . Influence Decreases 269 | . 175 94 Entered New Map 48 | . 2 46 Time Decay 221 | . 173 48 Squads Dispatched 1 | . 1 . Investigation . | . . . Extermination . | . . . Reinforcement 1 | . 1 . Assault . | . . . Garrison . | . . . Intercept . | . . . Searches Triggered . | . . . Construction Impeded . | . . . Haulers Reinforced . | . . . Active Scanning Responses . | . . . Cargo Convoy Interrupts . | . . . Stealth | -11 -10 -10 --------- Run | Yrd Mat Sub Distress Signals 1 | . 1 . Communications Jammed . | . . . Distress Signals . | . . . Times Spotted 27 | . 14 13 Peak Tracking Total 11 | . 3 11 Tactical Retreats 3 | . 2 1 Traps | -11 -10 -10 ------- Run | Yrd Mat Sub Traps Triggered . | . . . Indirectly . | . . . Trap Hack Attempts . | . . . Triggered . | . . . Disarmed . | . . . Reprogrammed . | . . . Reused . | . . . Traps Extracted . | . . . Installed . | . . . Triggered . | . . . Machines | -11 -10 -10 ---------- Run | Yrd Mat Sub Machines Disabled . | . . . Max in Single Turn . | . . . Machines Repaired . | . . . Machines Dismantled . | . . . Machines Sabotaged . | . . . Overloaded Fab Kills . | . . . Hacking | -11 -10 -10 --------- Run | Yrd Mat Sub Machines Accessed . | . . . Terminals . | . . . Fabricators . | . . . Repair Stations . | . . . Recycling Units . | . . . Scanalyzers . | . . . Garrison Access . | . . . Total Hacks . | . . . Successful . | . . . Failed . | . . . Catastrophic . | . . . Database Lockouts . | . . . Manual . | . . . Terminals . | . . . Fabricators . | . . . Repair Stations . | . . . Recycling Units . | . . . Scanalyzers . | . . . Garrison Access . | . . . Terminal Hacks . | . . . Fabricator Hacks . | . . . Repair Station Hacks . | . . . Recycling Unit Hacks . | . . . Scanalyzer . | . . . Garrison Access Hacks . | . . . Unauthorized Hacks . | . . . Terminals . | . . . Fabricators . | . . . Repair Stations . | . . . Recycling Units . | . . . Scanalyzers . | . . . Garrison Access . | . . . Data Cores Recovered . | . . . Used . | . . . Hacking Detections . | . . . Full Trace Events . | . . . Feedback Events . | . . . Feedback Blocked . | . . . Robot Schematics Acquired . | . . . Robots Built . | . . . Authchips . | . . . Time . | . . . Total Robot Build Rating . | . . . Part Schematics Acquired . | . . . Parts Built . | . . . Authchips . | . . . Time . | . . . Total Part Build Rating . | . . . Parts Repaired . | . . . Time . | . . . Parts Recycled . | . . . Recycled Matter . | . . . Retrieved Matter . | . . . Retrieved Components . | . . . Parts Scanalyzed . | . . . Part Schematics Acquired . | . . . Parts Damaged . | . . . Bothacking | -11 -10 -10 ------------ Run | Yrd Mat Sub Used RIF Installer . | . . . Robots Hacked . | . . . Non-combat . | . . . Combat . | . . . Robot Hacks Applied . | . . . Relay Couplers Released . | . . . Fabnet Peak Effective % . | . . . Robots Rewired . | . . . Allies Hacked . | . . . Hacks Repelled . | . . . Allies | -11 -10 -10 -------- Run | Yrd Mat Sub Total Allies . | . . . Largest Group . | . . . Highest-Rated Group . | . . . Highest-Rated Ally . | . . . Total Orders . | . . . Ally Attacks . | . . . Total Damage . | . . . Kills . | . . . Allies Corrupted . | . . . Allies Melted 1 | . . 1 Intel | -11 -10 -10 ------- Run | Yrd Mat Sub Active Infowar (turns) . | . . . Robot Analysis Total . | . . . Derelict Logs Recovered . | . . . Drone Launches . | . . . Drone Recoveries . | . . . Exploration | -11 -10 -10 ------------- Run | Yrd Mat Sub Turns Passed 706 | 57 395 254 Spaces Moved 470 | 40 245 185 Core 13 | 13 . . Treads . | . . . Legs 457 | 27 245 185 Wheels . | . . . Hover . | . . . Flight . | . . . Fastest Speed 50 | 50 120 120 Average Speed 118 | 97 120 120 Slowest Speed 190 | 120 120 190 Overloaded Moves . | . . . Propulsion Burnouts . | . . . Robots Hopped . | . . . Potential Cave-ins . | . . . Cave-ins Triggered . | . . . Exploration Rate (%) 22 | 4 48 16 Regions Visited 2 Branch Regions 1 Pre-discovered Areas . | . . . Known Exits Taken . | . . . Unknown Exits Taken 2 | 1 1 . Scrap Searched . | . . . Spaces Dug . | . . . Terrain Destroyed . | . . . Melee . | . . . Projectile . | . . . AOE . | . . . Terrain Rammed . | . . . Walls Destroyed . | . . . Machines Disabled . | . . . Actions | -11 -10 -10 --------- Run | Yrd Mat Sub Total 547 | 55 294 198 Wait 17 | . 16 1 Move 468 | 39 244 185 Hop . | . . . Pick Up 15 | 8 5 2 Fast Attach 1 | . . 1 Attach 7 | 6 1 . Detach . | . . . Swap 2 | 1 1 . Drop 1 | . 1 . Fire 36 | 1 26 9 Melee . | . . . Ram . | . . . Kick . | . . . Crush . | . . . Escape Stasis . | . . . Rewire . | . . . Trap . | . . . Miscellaneous . | . . . Route ------- -11/Scrapyard -10/Materials (discovered 4 exits: [*Mat x2] / [*Min] / [*Sub]) -10/Subcaves History --------- Turn | Location | Event 11 | -11/Scrapyard | Discovered new exit (range 16) 58 | -11/Scrapyard | Entered Materials 66 | -10/Materials | Discovered new exit (range 16) 153 | -10/Materials | Discovered new exit (range 3) 314 | -10/Materials | Build established: Mutant 315 | -10/Materials | Discovered new exit (range 16) 435 | -10/Materials | Discovered new exit (range 9) 453 | -10/Materials | Entered Subcaves 454 | -10/Subcaves | Approached by a straggling Scientist 618 | -10/Subcaves | Ambushed by swarm of Subdwellers 622 | -10/Subcaves | Ambushed by Subdwellers from Twisted Machinery 622 | -10/Subcaves | Ambushed by Subdwellers from Twisted Machinery 622 | -10/Subcaves | Ambushed by Subdwellers from Twisted Machinery 622 | -10/Subcaves | Ambushed by Subdwellers from Twisted Machinery 632 | -10/Subcaves | Core integrity fell below 50% 655 | -10/Subcaves | Core integrity fell below 20% 668 | -10/Subcaves | A swath of the cavern ceiling suddenly collapsed 687 | -10/Subcaves | Lost 6 parts (1p2n1u2w) 689 | -10/Subcaves | Lost 5 allies 707 | -10/Subcaves | Destroyed by 78-LXO(R) with Subdweller Machine Gun Last Messages --------------- 00626_ E7-FTZ(R) destroyed. 00627_ RV-H3D(h) suffers critical hit (Meltdown). 00628_ Aluminum Leg destroyed. 00631_ Acquired Myomer Leg. 00632_ Y2-ED5(R) suffers critical hit (Burn). 00632_ YO-B3J(g) suffers critical hit (Destroy). 00635_ Y6-LNY(R) destroyed. 00637_ YO-B3J(g) destroyed. 00637_ D7-6NK(R) suffers critical hit (Burn). 00638_ Ion Engine destroyed. 00639_ Heat Sink destroyed. 00639_ IW-AVI(g) destroyed. 00649_ Aluminum Leg destroyed. 00650_ O8-K58(g) destroyed. 00656_ Med. Laser destroyed. QD-F4N(c): "I think it's somewhere east of here" 00658_ QD-F4N(c) destroyed. A swath of the cavern ceiling suddenly collapses. Map ----- +----------------------------------------------------+ | ??????????? ?#"" ##??????????????????? | | ??????????? "" ## = #??????????????????? | | ??????????? ?## !%!#######????????????? | | ?????????? #### ???# !% =[ ##???????????? | | ??????????????### ????# # !%%% #???????????? | | ????????????????##???### ## !!![ !#???????????? | | ?????????????###??#### # # % %![#???????????? | | ?????????????# ### ## ###= %%#??????????? | | ?????????????# ## ##??# *#??????????? | | ????????###### # # ## ##???# %#??????????? | | ????????# ""# ####### #????###??????????? | | ???????# #""" #????## #?????????????????? | | ???????# ####"# ##????## #?????????????????? | | ???????# #""#" " ###???###?????????????????? | | ??????# #"""###" ##??????????????????????? | | ?????? ####"# # #??????????????????????? | | ??????? #"""" ""# ###???????? ?????????????? | | ??????? #"##""#### ##???????? ??????????????? | | ??????? ## ##?##########? ??????????????? | | ???????? #""##???# # # # ???????????????? | | ???????? ## "##??# ?????????????????? | | ????????? #"# "#?? ???????????????????? | | ?????????## #" ##??# #????????????????????? | | ???????????# ###?##R##### #????????????????????? | | ?????????????????#;#R #????????????????????? | | ?????????????????##; @ #????????????????????? | | ??????????????????# # ###????????????????????? | | ?????????????????# #######??????????????????????? | | ?????????????????###?????????????????????????????? | | ?????????????????????????????????????????????????? | | ?????????????????????????????????????????????????? | | ?????????????????????????????????????????????????? | | ?????????????????????????????????????????????????? | | ?????????????????????????????????????????????????? | | ?????????????????????????????????????????????????? | | ?????????????????????????????????????????????????? | | ?????????????????????????????????????????????????? | | ?????????????????????????????????????????????????? | | ?????????????????????????????????????????????????? | | ?????????????????????????????????????????????????? | | ?????????????????????????????????????????????????? | | ?????????????????????????????????????????????????? | | ?????????????????????????????????????????????????? | | ?????????????????????????????????????????????????? | | ?????????????????????????????????????????????????? | | ?????????????????????????????????????????????????? | | ?????????????????????????????????????????????????? | | | | | | | +----------------------------------------------------+ Best States ------------- Heat Dissipation 35 Energy Generation 10 Energy Capacity 250 Matter Stores 300 Matter Capacity 300 Sight Range 16 Terrain Scan Density 10 Evasion (%) 55 Item Schematics ----------------- None Robot Schematics ------------------ None Fabricated ------------ Nothing Repaired ---------- Nothing Alien Tech Used ----------------- None Achievements -------------- None Challenges ------------ None Game ------ Seed DroneFactoryExoskeleton Manual? 0 Play Time 00:07:47 Cumulative 60.8 hours Start 2025.05.16 @ 09:26:07 End 2025.05.16 @ 09:33:29 Sessions 1 Manual Loads 0 Difficulty Rogue Special Mode None Game No. 142 Rogue 142 Adventurer 0 Explorer 0 Win Type - Total 1 Types 1/0/0/0/0/0/0/0/0/0 Lore% 24 Gallery% 36 Achievement% 33 Wizard Run 0 Options --------- Layout 1 ASCII 0 Keyboard 0 Movement Mouse Keybinds 0 Fullscreen 0 Font 28/SmallcapsGlow Map View 50x35 Zoom Use 0% Tactical HUD 1 Map Filters NONE Filters NONE Steam 1 RUN: f0935607-65e9-48b6-8b56-57f6f9253044